bitfinex-derivatives/quotes_BTCF0:USTF0_20250902
["timestamp","ask_amount","ask_price","bid_price","bid_amount"]
[1756822361556,0.7559389,111240.0,111230.0,0.20416]
[1756822361757,0.7559389,111240.0,111230.0,0.09886]
[1756822361954,0.08916,111230.0,111220.0,0.51765]
[1756822362263,0.7539389,111230.0,111220.0,0.62482]
[1756822362450,0.29539,111230.0,111220.0,0.72635]
[1756822362652,0.7539389,111230.0,111220.0,0.72635]
[1756822362852,0.7539389,111230.0,111220.0,0.46797]
[1756822363055,0.08916,111220.0,111210.0,0.51765]
[1756822363261,0.7539389,111220.0,111210.0,1.03635]
[1756822363454,0.6647789,111220.0,111210.0,1.03635]
[1756822363658,0.5622189,111220.0,111210.0,1.03635]
[1756822363959,0.6503789,111220.0,111210.0,1.03635]
[1756822364352,1.1127389,111220.0,111210.0,0.5187]
[1756822364549,1.1127389,111220.0,111210.0,0.5197]
[1756822364550,1.3627389,111220.0,111210.0,0.5197]
[1756822365764,1.3627389,111220.0,111210.0,0.003]
[1756822366063,2.29309808,111220.0,111210.0,0.003]
[1756822366357,0.20623,111200.0,111190.0,0.22834036]
[1756822366563,0.7499389,111200.0,111190.0,0.38519036]
[1756822366749,1.5692878,111200.0,111190.0,0.01964036]
[1756822366950,1.2084878,111200.0,111190.0,0.12681036]
[1756822367151,1.2084878,111200.0,111190.0,0.22834036]
[1756822367462,0.7499389,111200.0,111190.0,0.38519036]
[1756822368063,0.7499389,111200.0,111190.0,0.38619036]
[1756822368257,1.1107389,111200.0,111190.0,0.38619036]
[1756822369461,0.9999389,111200.0,111190.0,0.02164036]
[1756822369656,1.4584878,111200.0,111190.0,0.02164036]
[1756822369856,1.8192878,111200.0,111190.0,0.02164036]
[1756822370058,1.83734203,111200.0,111190.0,0.002]
[1756822371166,1.58734203,111200.0,111190.0,0.002]
[1756822371367,2.50782203,111200.0,111190.0,0.002]
[1756822371568,2.50782203,111200.0,111190.0,0.10917]
[1756822372069,1.58734203,111200.0,111190.0,0.10917]
[1756822372259,1.58734203,111200.0,111190.0,0.2107]
[1756822372260,2.50774203,111200.0,111190.0,0.2107]
[1756822372569,1.58734203,111200.0,111190.0,0.2107]
[1756822372762,2.57922408,111200.0,111190.0,0.2107]
[1756822373163,0.22428423,111200.0,111190.0,0.72835]
[1756822373362,0.68283313,111200.0,111190.0,1.05835]
[1756822373768,0.5632189,111200.0,111190.0,1.30835]
[1756822374462,0.7499389,111200.0,111190.0,0.61755]
[1756822374654,0.4585489,111200.0,111190.0,1.32835]
[1756822374859,0.4585489,111200.0,111190.0,2.24851]
[1756822375470,0.4585489,111210.0,111190.0,2.24851]
[1756822375666,0.7499389,111210.0,111200.0,0.42853]
[1756822376071,0.7499389,111210.0,111200.0,0.10717]
[1756822376370,1.1107389,111210.0,111200.0,0.10717]
[1756822377064,1.1117389,111210.0,111200.0,0.10717]
[1756822377366,0.29139,111200.0,111190.0,0.001]
[1756822377566,2.4891678,111200.0,111190.0,0.001]
[1756822377773,1.1107389,111200.0,111190.0,0.001]
[1756822378165,0.7499389,111200.0,111190.0,0.36555]
[1756822378370,1.36676,111210.0,111200.0,0.15685]
[1756822378670,0.29139,111200.0,111190.0,0.36555]
[1756822378863,0.20623,111200.0,111190.0,0.36555]
[1756822379168,0.5632189,111200.0,111190.0,0.36555]
[1756822379369,0.7499389,111200.0,111190.0,0.36555]
[1756822379570,1.4841278,111200.0,111180.0,0.51765]
[1756822379770,0.5437089,111190.0,111180.0,1.09635]
[1756822380167,0.7489389,111190.0,111180.0,0.73555]
[1756822380375,2.1951389,111190.0,111160.0,0.51765]
[1756822380575,0.6647789,111170.0,111160.0,0.89635]
[1756822380770,0.01639153,111180.0,111160.0,0.89635]
[1756822381076,0.47494043,111180.0,111170.0,0.36555]
[1756822381374,0.47494043,111180.0,111170.0,0.72555]
[1756822381581,0.47494043,111180.0,111170.0,0.36555]
[1756822382179,0.66377043,111180.0,111170.0,0.36555]
[1756822382377,0.76533043,111180.0,111170.0,0.36555]
[1756822383084,0.57961043,111180.0,111170.0,0.36555]
[1756822383277,0.76533043,111180.0,111170.0,0.36555]
[1756822383771,0.47694043,111180.0,111170.0,0.36555]
[1756822383972,0.47694043,111180.0,111170.0,0.80479309]
[1756822384272,0.47694043,111180.0,111170.0,0.44399309]
[1756822384877,0.76319043,111180.0,111170.0,0.44399309]
[1756822385780,0.76319043,111180.0,111170.0,0.07844309]
[1756822386079,0.27747,111170.0,111160.0,0.79545309]
[1756822386280,0.7360189,111170.0,111160.0,0.79545309]
[1756822387281,0.7360189,111170.0,111160.0,0.78568309]
[1756822387581,0.6573689,111170.0,111160.0,0.78568309]
[1756822387780,0.4605489,111170.0,111160.0,1.21893232]
[1756822387970,0.002,111170.0,111160.0,1.21893232]
[1756822388877,0.4605489,111170.0,111160.0,1.21893232]
[1756822389184,0.7380189,111170.0,111160.0,0.79568309]
[1756822389477,0.5574789,111170.0,111160.0,0.79568309]
[1756822389682,0.002,111170.0,111160.0,1.11568309]
[1756822389979,0.002,111170.0,111160.0,1.28724]
[1756822390280,0.002,111170.0,111160.0,1.4556239]
[1756822390482,0.47494043,111180.0,111160.0,1.3656728]
[1756822390676,0.01639153,111180.0,111170.0,0.797183]
[1756822390884,0.01823992,111200.0,111180.0,0.2370124]
[1756822391071,0.47678882,111200.0,111190.0,0.34644]
[1756822391275,0.47678882,111200.0,111190.0,1.57484]
[1756822391676,0.93462882,111200.0,111190.0,1.26484]
[1756822391883,1.13344882,111200.0,111190.0,0.19936]
[1756822392077,1.13344882,111200.0,111190.0,0.10201]
[1756822392680,0.47678882,111200.0,111190.0,0.34644]
[1756822392879,1.13344882,111200.0,111190.0,0.34644]
[1756822393682,1.13344882,111200.0,111190.0,0.19936]
[1756822394289,1.13344882,111200.0,111180.0,0.50788]
[1756822394290,1.59199772,111200.0,111180.0,0.50788]
[1756822394588,0.7544089,111190.0,111180.0,0.70724]
[1756822395393,0.7544089,111190.0,111180.0,0.34644]
[1756822395891,0.7544089,111190.0,111180.0,0.34744]
[1756822396186,1.1152089,111190.0,111180.0,0.34744]
[1756822396380,0.83758882,111200.0,111190.0,0.14708]
[1756822396381,1.69040882,111200.0,111190.0,0.14708]
[1756822396576,0.21705992,111200.0,111190.0,0.34644]
[1756822396786,0.47678882,111200.0,111190.0,0.34644]
[1756822396989,0.01823992,111200.0,111190.0,0.66644]
[1756822397189,0.47678882,111200.0,111190.0,0.70724]
[1756822397490,0.47678882,111200.0,111190.0,1.08724]
[1756822397683,0.47678882,111200.0,111190.0,0.34644]
[1756822397883,1.13344882,111200.0,111190.0,0.34644]
[1756822398080,0.77264882,111200.0,111190.0,0.34644]
[1756822398789,1.13344882,111200.0,111190.0,0.19936]
[1756822398984,0.77264882,111200.0,111190.0,0.19936]
[1756822399582,0.77264882,111200.0,111190.0,0.10201]
[1756822399794,0.29586,111190.0,111180.0,0.34644]
[1756822400091,0.7544089,111190.0,111180.0,0.34644]
[1756822400687,1.1152089,111190.0,111180.0,0.34644]
[1756822400891,1.1152089,111190.0,111180.0,0.10201]
[1756822401090,0.29586,111180.0,111170.0,0.07840899]
[1756822401288,2.0323689,111180.0,111160.0,0.10982033]
[1756822401486,0.7544089,111170.0,111160.0,0.33]
[1756822402182,0.09704,111160.0,111150.0,0.34778974]
[1756822402388,0.7544089,111160.0,111150.0,0.36673075]
[1756822402789,0.7544089,111160.0,111150.0,0.47655108]
[1756822402984,2.0321689,111160.0,111150.0,0.20840664]
[1756822403187,2.7407178,111160.0,111140.0,0.07829556]
[1756822403494,0.5554789,111150.0,111140.0,0.8759036]
[1756822403691,0.4585489,111150.0,111140.0,0.8759036]
[1756822404191,0.4585489,111150.0,111140.0,1.4867036]
[1756822404492,1.1333976,111170.0,111160.0,0.34644]
[1756822405196,0.7725976,111170.0,111160.0,0.34644]
[1756822405585,1.1333976,111170.0,111160.0,0.19936]
[1756822405781,1.1333976,111170.0,111160.0,0.10201]
[1756822407186,0.7725976,111170.0,111160.0,0.19936]
[1756822408090,1.0363576,111170.0,111150.0,0.14708]
[1756822408395,0.7544089,111160.0,111150.0,0.34644]
[1756822408695,0.7544089,111160.0,111150.0,0.19936]
[1756822409092,0.7544089,111160.0,111150.0,0.40633]
[1756822409293,0.7544089,111160.0,111150.0,0.77733]
[1756822409681,0.7544089,111160.0,111150.0,0.57236]
[1756822409898,0.7544089,111160.0,111150.0,0.71944]
[1756822410207,0.7544089,111160.0,111150.0,0.10501]
[1756822410398,1.2129578,111160.0,111150.0,0.003]
[1756822410701,1.6706089,111160.0,111150.0,0.34944]
[1756822410997,0.7544089,111160.0,111150.0,0.34944]
[1756822411193,1.6705689,111160.0,111150.0,0.10501]
[1756822411998,2.1291178,111160.0,111150.0,0.003]
[1756822412297,1.6705689,111160.0,111150.0,0.003]
[1756822412499,1.6705689,111160.0,111150.0,0.10501]
[1756822412794,0.29586,111160.0,111150.0,0.71944]
[1756822412985,0.6573689,111160.0,111150.0,0.77933]
[1756822413298,0.19882,111160.0,111150.0,1.02933]
[1756822413489,1.6884776,111170.0,111160.0,0.34644]
[1756822413696,1.6884776,111170.0,111150.0,0.06289]
[1756822413890,0.5555889,111160.0,111150.0,0.72382]
[1756822414095,0.6573689,111160.0,111150.0,1.08462]
[1756822414395,0.0181887,111170.0,111160.0,0.34644]
[1756822414396,0.3140487,111170.0,111160.0,0.34644]
[1756822414598,0.7725976,111170.0,111160.0,0.34644]
[1756822415496,0.77005958,111170.0,111160.0,0.34644]
[1756822415696,1.13085958,111170.0,111160.0,0.34644]
[1756822415996,1.38085958,111170.0,111150.0,0.00749]
[1756822416195,1.38085958,111170.0,111150.0,1.14267]
[1756822416196,0.74265088,111160.0,111150.0,1.14267]
[1756822416390,1.65817088,111160.0,111150.0,0.00549]
[1756822416597,2.01897088,111160.0,111150.0,0.00449]
[1756822416802,1.65817088,111160.0,111150.0,0.00449]
[1756822416995,0.74265088,111160.0,111150.0,0.00449]
[1756822417294,1.10345088,111160.0,111150.0,0.00449]
[1756822417499,1.10345088,111160.0,111150.0,0.00649]
[1756822417500,1.35345088,111160.0,111150.0,0.00649]
[1756822417799,1.35345088,111160.0,111150.0,0.00749]
[1756822418691,1.35345088,111160.0,111130.0,0.17891593]
[1756822418692,0.27915,111140.0,111130.0,0.17891593]
[1756822418900,1.65040088,111140.0,111130.0,0.58641593]
[1756822419197,2.26120088,111140.0,111130.0,0.39258593]
[1756822419399,2.27951449,111140.0,111110.0,0.68930203]
[1756822419606,0.18286,111120.0,111110.0,1.12373504]
[1756822419796,0.08421,111130.0,111110.0,0.90505334]
[1756822420009,0.01831361,111140.0,111130.0,0.15618]
[1756822420194,0.66926449,111140.0,111130.0,0.71081]
[1756822420392,0.66926449,111140.0,111130.0,0.35001]
[1756822420592,0.66926449,111140.0,111130.0,0.19783]
[1756822420892,1.03006449,111140.0,111130.0,0.19783]
[1756822421094,1.03006449,111140.0,111130.0,0.004]
[1756822421403,1.94510449,111140.0,111130.0,0.35401]
[1756822421600,0.66926449,111140.0,111130.0,0.35401]
[1756822421799,0.66926449,111140.0,111130.0,0.10033]
[1756822422003,0.75047449,111140.0,111130.0,0.10033]
[1756822422203,1.11127449,111140.0,111130.0,0.10033]
[1756822422401,1.11127449,111140.0,111130.0,0.004]
[1756822422603,1.1203512,111140.0,111130.0,0.004]
[1756822422799,1.11127449,111140.0,111130.0,0.19783]
[1756822423001,1.66543449,111140.0,111130.0,0.35401]
[1756822423202,0.75047449,111140.0,111130.0,0.35501]
[1756822423508,0.75047449,111140.0,111130.0,0.70501]
[1756822423904,0.75953482,111140.0,111130.0,0.10133]
[1756822424711,0.75953482,111140.0,111130.0,0.005]
[1756822425805,1.12033482,111140.0,111130.0,0.005]
[1756822426000,0.27115,111110.0,111100.0,0.4741317]
[1756822426206,1.08796088,111110.0,111100.0,0.37]
[1756822426410,1.08796088,111110.0,111100.0,0.29379]
[1756822426411,1.67796088,111110.0,111100.0,0.29379]
[1756822426605,1.71796088,111110.0,111060.0,0.2186817]
[1756822426802,0.81681088,111070.0,111060.0,0.4225117]
[1756822427006,0.81681088,111070.0,111060.0,0.6125117]
[1756822427206,0.46201088,111070.0,111060.0,0.7225117]
[1756822427399,0.81581088,111070.0,111060.0,0.7625117]
[1756822428114,0.45501088,111070.0,111060.0,0.7725117]
[1756822428317,0.45501088,111070.0,111060.0,0.4135117]
[1756822428612,0.45501088,111070.0,111060.0,0.7835117]
[1756822429002,0.45501088,111070.0,111060.0,1.03690612]
[1756822429207,0.45501088,111070.0,111060.0,1.00440442]
[1756822429405,0.45501088,111070.0,111060.0,0.67440442]
[1756822429617,0.45501088,111070.0,111060.0,0.73690612]
[1756822430114,0.81781088,111070.0,111060.0,0.0635017]
[1756822430414,0.81781088,111070.0,111060.0,0.001]
[1756822432208,0.45701088,111070.0,111060.0,0.35101]
[1756822432412,0.92636,111070.0,111060.0,0.35101]
[1756822432613,1.38237088,111070.0,111060.0,0.35101]
[1756822433309,1.74317088,111070.0,111060.0,0.19483]
[1756822433509,1.74317088,111070.0,111060.0,0.35101]
[1756822433910,1.74285088,111070.0,111060.0,0.35101]
[1756822434207,1.28684,111070.0,111060.0,0.35101]
[1756822434407,0.92608,111070.0,111060.0,0.35101]
[1756822434612,0.012,111070.0,111060.0,0.67101]
[1756822434917,0.012,111070.0,111060.0,0.35101]
[1756822435414,0.82881088,111070.0,111060.0,0.35101]
[1756822435615,0.82881088,111070.0,111060.0,0.001]
[1756822436016,0.8469918,111070.0,111060.0,0.001]
[1756822436218,1.0969918,111070.0,111060.0,0.001]
[1756822437412,1.4469918,111070.0,111060.0,0.001]
[1756822438910,1.4469918,111070.0,111030.0,0.0625017]
[1756822439109,0.81681088,111040.0,111030.0,0.0625017]
[1756822439320,2.08860977,111040.0,111010.0,0.80926532]
[1756822439514,0.45601088,111020.0,111010.0,1.17926532]
[1756822440112,0.45601088,111020.0,111010.0,0.80926532]
[1756822440308,0.93208213,111030.0,111020.0,0.35001]
[1756822440511,0.48457301,111030.0,111020.0,0.35001]
[1756822441119,0.02856213,111030.0,111020.0,0.35001]
[1756822441324,0.02856213,111030.0,111020.0,1.31081]
[1756822442010,0.02856213,111030.0,111020.0,1.4008753]
[1756822442212,0.03056213,111030.0,111020.0,1.31081]
[1756822442618,0.012,111030.0,111020.0,1.31081]
[1756822443119,0.012,111030.0,111020.0,0.96081]
[1756822443314,0.012,111030.0,111020.0,1.34081]
[1756822444713,0.012,111030.0,111020.0,0.96081]
[1756822444914,0.012,111030.0,111020.0,0.60001]
[1756822445120,0.012,111030.0,111020.0,0.35001]
[1756822445509,0.46801088,111030.0,111020.0,0.35001]
[1756822445713,0.012,111030.0,111020.0,1.04081]
[1756822445919,0.002,111030.0,111020.0,2.2939953]
[1756822446612,0.002,111030.0,111020.0,2.20393]
[1756822446816,0.002,111030.0,111020.0,2.2939953]
[1756822447122,0.002,111030.0,111020.0,2.75000618]
[1756822447520,0.002,111030.0,111020.0,2.2939953]
[1756822448228,0.002,111030.0,111020.0,2.2939952]
[1756822448518,0.002,111030.0,111020.0,2.20393]
[1756822448724,0.002,111030.0,111020.0,2.2939952]
[1756822449428,0.002,111030.0,111020.0,2.75000608]
[1756822449620,0.002,111030.0,111020.0,2.82822302]
[1756822451425,0.002,111030.0,111020.0,2.85982641]
[1756822451628,0.002,111030.0,111020.0,1.94670641]
[1756822451827,0.002,111030.0,111020.0,2.2933952]
[1756822452132,0.002,111030.0,111020.0,2.74940608]
[1756822452929,0.002,111030.0,111020.0,1.83688608]
[1756822453116,0.002,111030.0,111020.0,2.74924608]
[1756822453528,0.002,111030.0,111020.0,1.83688608]
[1756822453727,0.002,111030.0,111020.0,2.74920608]
[1756822454327,0.002,111030.0,111020.0,2.49912608]
[1756822454520,0.002,111030.0,111020.0,1.58688608]
[1756822454732,0.002,111030.0,111020.0,2.49908608]
[1756822455424,0.002,111030.0,111020.0,1.1308753]
[1756822455628,0.002,111030.0,111020.0,2.49896618]
[1756822456226,0.002,111030.0,111020.0,2.74896618]
[1756822457326,0.002,111030.0,111020.0,1.83688618]
[1756822457622,0.002,111030.0,111020.0,2.74876618]
[1756822458023,0.002,111030.0,111020.0,2.75876618]
[1756822458224,0.01818092,111070.0,111060.0,0.19722]
[1756822458523,0.01818092,111070.0,111060.0,2.07786089]
[1756822458724,0.01818092,111070.0,111060.0,1.98782839]
[1756822458918,0.01818092,111070.0,111060.0,1.99695344]
[1756822459120,0.26818092,111070.0,111060.0,1.39859839]
[1756822459319,0.26818092,111070.0,111060.0,1.91706919]
[1756822459522,0.26818092,111070.0,111060.0,1.63774839]
[1756822459730,0.7241918,111070.0,111060.0,1.27694839]
[1756822459930,0.7241918,111070.0,111060.0,1.12859839]
[1756822460130,0.7311918,111070.0,111060.0,1.95774839]
[1756822460524,0.02718092,111070.0,111060.0,1.95774839]
[1756822461030,0.02718092,111070.0,111060.0,2.05710716]
[1756822461235,0.02518092,111070.0,111060.0,2.51311804]
[1756822461424,0.007,111070.0,111060.0,2.76311804]
[1756822461925,0.007,111070.0,111060.0,2.05678716]
[1756822462234,0.007,111070.0,111060.0,2.05674716]
[1756822462638,0.007,111070.0,111060.0,1.05535466]
[1756822462825,0.007,111070.0,111060.0,2.05670716]
[1756822463228,0.257,111070.0,111060.0,1.05535466]
[1756822463435,0.257,111070.0,111060.0,1.95726839]
[1756822464029,0.257,111070.0,111060.0,1.96659466]
[1756822464730,0.007,111070.0,111060.0,2.05662716]
[1756822464921,0.007,111070.0,111060.0,2.51263804]
[1756822465126,0.007,111070.0,111060.0,1.96659466]
[1756822465732,0.007,111070.0,111060.0,2.05662716]
[1756822466331,0.007,111070.0,111060.0,2.51263804]
[1756822466835,0.007,111070.0,111060.0,2.05662716]
[1756822467927,0.007,111070.0,111060.0,2.51263804]
[1756822469036,0.007,111070.0,111060.0,1.96599466]
[1756822470136,0.007,111070.0,111060.0,2.05602716]
[1756822470632,0.007,111070.0,111060.0,2.51203804]
[1756822470831,0.007,111070.0,111060.0,2.42200554]
[1756822471031,0.007,111070.0,111060.0,1.96599466]
[1756822471232,0.007,111070.0,111060.0,2.05602716]
[1756822471932,0.007,111070.0,111060.0,1.14538716]
[1756822472129,0.007,111070.0,111060.0,1.05535466]
[1756822472332,0.257,111070.0,111060.0,1.05535466]
[1756822472537,0.257,111070.0,111060.0,1.96559466]
[1756822473034,0.71301088,111070.0,111060.0,0.89767839]
[1756822473233,0.257,111070.0,111060.0,1.95626839]
[1756822474638,0.007,111070.0,111060.0,1.95626839]
[1756822475036,0.007,111070.0,111060.0,2.04630089]
[1756822475237,0.007,111070.0,111060.0,1.95626839]
[1756822475940,0.007,111070.0,111060.0,1.04602839]
[1756822476134,0.7167383,111070.0,111060.0,1.95590839]
[1756822476431,0.7167383,111070.0,111060.0,1.04602839]
[1756822476636,0.7167383,111070.0,111060.0,1.80755839]
[1756822476931,0.7167383,111070.0,111060.0,0.89767839]
[1756822477130,0.7167383,111070.0,111060.0,1.80747839]
[1756822477337,0.7167383,111070.0,111060.0,1.94956839]
[1756822478234,0.7167383,111070.0,111060.0,1.03976839]
[1756822478435,0.7167383,111070.0,111060.0,1.94944839]
[1756822478736,0.7167383,111070.0,111060.0,1.80735839]
[1756822478931,0.7167383,111070.0,111060.0,1.94936839]
[1756822479135,0.7167383,111070.0,111060.0,2.00940839]
[1756822482449,0.7167383,111070.0,111060.0,2.00920839]
[1756822482840,0.257,111070.0,111060.0,2.00920839]
[1756822483033,0.257,111070.0,111060.0,1.09976839]
[1756822483237,0.7167383,111070.0,111060.0,2.00904839]
[1756822484342,0.007,111070.0,111060.0,2.00904839]
[1756822485446,0.007,111070.0,111060.0,2.25904839]
[1756822485840,0.002,111070.0,111060.0,2.25904839]
[1756822486034,0.006,111070.0,111060.0,2.34908099]
[1756822486235,0.006,111070.0,111060.0,2.71878669]
[1756822486441,0.006,111070.0,111060.0,2.80881929]
[1756822486635,0.006,111070.0,111060.0,2.88703952]
[1756822486834,0.004,111070.0,111060.0,2.88703952]
[1756822487039,0.005,111070.0,111060.0,2.88703952]
[1756822487445,0.005,111070.0,111060.0,2.80881929]
[1756822487647,0.005,111070.0,111060.0,2.88725981]
[1756822488043,0.005,111070.0,111060.0,2.88669981]
[1756822488649,0.005,111070.0,111060.0,2.88661981]
[1756822489243,0.005,111070.0,111060.0,1.97797981]
[1756822489639,0.005,111070.0,111060.0,2.88649981]
[1756822490646,0.00094194,111070.0,111060.0,2.80805929]
[1756822490846,0.00094194,111070.0,111060.0,2.90805929]
[1756822491350,0.00094194,111070.0,111060.0,2.98628728]
[1756822491645,0.01847108,111120.0,111100.0,0.05561]
[1756822491846,0.01831361,111140.0,111130.0,0.19355]
[1756822492144,0.86119481,111140.0,111130.0,0.78328]
[1756822492550,0.93422679,111140.0,111130.0,0.78328]
[1756822492754,0.93422679,111140.0,111120.0,0.33564]
[1756822492945,0.93422679,111140.0,111120.0,1.11163]
[1756822492946,1.0705383,111130.0,111120.0,1.11163]
[1756822493145,1.0705383,111130.0,111120.0,1.62372]
[1756822493346,1.09235094,111130.0,111120.0,1.48159]
[1756822493538,0.27181264,111130.0,111120.0,1.62368]
[1756822493741,0.73155094,111130.0,111120.0,1.62368]
[1756822493942,0.73155094,111130.0,111120.0,0.71564]
[1756822494145,0.73155094,111130.0,111120.0,1.62352]
[1756822494547,0.73155094,111130.0,111120.0,1.48143]
[1756822494746,0.73455094,111130.0,111120.0,1.48143]
[1756822494946,1.09535094,111130.0,111120.0,0.38]
[1756822495252,0.27481264,111130.0,111120.0,1.2878]
[1756822495452,1.09535094,111130.0,111120.0,1.2878]
[1756822495653,1.09535094,111130.0,111110.0,0.92789598]
[1756822495851,0.4597383,111120.0,111110.0,0.92789598]
[1756822496051,0.8205383,111120.0,111110.0,0.92789598]
[1756822496253,0.8205383,111120.0,111110.0,0.02013598]
[1756822496453,1.0705383,111120.0,111110.0,0.02013598]
[1756822497955,1.0725383,111120.0,111110.0,0.02013598]
[1756822498357,0.6128,111120.0,111110.0,0.02013598]
[1756822498551,1.0725383,111120.0,111110.0,0.38013598]
[1756822498859,1.0755383,111120.0,111110.0,0.02013598]
[1756822499250,0.8255383,111120.0,111110.0,0.02013598]
[1756822499555,1.55384353,111120.0,111090.0,2.40497]
[1756822499748,0.4597383,111100.0,111090.0,1.73009]
[1756822499950,0.8205383,111100.0,111090.0,0.65564]
[1756822500149,1.07968722,111100.0,111090.0,0.41341]
[1756822500451,1.07968722,111100.0,111090.0,0.32]
[1756822500751,1.07968722,111100.0,111070.0,0.71681073]
[1756822501056,1.2802766,111080.0,111070.0,0.02037073]
[1756822501257,0.8205383,111080.0,111070.0,0.02037073]
[1756822501951,0.3608,111080.0,111070.0,0.02037073]
[1756822502153,0.8205383,111080.0,111070.0,0.02037073]
[1756822502461,0.3608,111090.0,111080.0,0.33564]
[1756822503058,0.3598,111090.0,111080.0,0.58564]
[1756822503244,0.8195383,111090.0,111080.0,0.58564]
[1756822503652,0.8195383,111090.0,111080.0,0.33564]
[1756822503854,0.8195383,111090.0,111070.0,0.38117073]
[1756822503855,1.0695383,111090.0,111070.0,0.21392073]
[1756822504056,0.8225383,111080.0,111070.0,0.02037073]
[1756822504452,0.4617383,111080.0,111070.0,0.02037073]
[1756822504647,0.3628,111080.0,111070.0,0.35601073]
[1756822504853,0.002,111080.0,111070.0,0.72601073]
[1756822505049,0.8384728,111080.0,111070.0,0.56355]
[1756822505554,0.8384728,111080.0,111070.0,0.67564]
[1756822505966,0.8384728,111080.0,111070.0,0.33564]
[1756822506258,0.8384728,111080.0,111070.0,0.19355]
[1756822506662,0.3797345,111080.0,111070.0,0.33556]
[1756822506958,0.0209345,111080.0,111070.0,0.69556]
[1756822507162,0.0209345,111080.0,111070.0,1.18636]
[1756822507658,0.0209345,111080.0,111070.0,0.82556]
[1756822507853,0.003,111080.0,111070.0,1.18636]
[1756822508257,0.003,111080.0,111070.0,1.79880023]
[1756822508563,0.003,111080.0,111070.0,1.24903753]
[1756822508755,0.4597383,111100.0,111080.0,0.14201]
[1756822509060,0.83910713,111110.0,111100.0,0.39687]
[1756822509262,0.47830713,111110.0,111100.0,0.39687]
[1756822509464,0.01856883,111110.0,111100.0,0.70687]
[1756822509649,0.01856883,111110.0,111100.0,1.1076701]
[1756822509960,0.01856883,111110.0,111100.0,1.3576701]
[1756822510163,0.01856883,111110.0,111100.0,1.00767]
[1756822510367,0.01856883,111110.0,111100.0,1.4276701]
[1756822510561,0.01856883,111110.0,111100.0,1.02767]
[1756822510756,0.01956883,111110.0,111100.0,1.02767]
[1756822510956,0.01956883,111110.0,111100.0,1.33767]
[1756822511156,0.02156883,111110.0,111100.0,1.33767]
[1756822511662,0.003,111110.0,111100.0,1.8874084]
[1756822511851,0.003,111110.0,111100.0,1.4276701]
[1756822512051,0.003,111110.0,111100.0,2.90322873]
[1756822512262,0.003,111110.0,111100.0,2.98127987]
[1756822512466,0.00022035,111110.0,111100.0,1.99722873]
[1756822512666,0.00022035,111110.0,111100.0,2.45230533]
[1756822512869,0.00022035,111110.0,111100.0,2.91204363]
[1756822513268,0.00022035,111110.0,111100.0,1.45738523]
[1756822513459,0.00022035,111110.0,111100.0,2.91300363]
[1756822513660,0.83885191,111140.0,111100.0,1.93552257]
[1756822513867,0.01831361,111140.0,111130.0,0.40094243]
[1756822514065,0.01831361,111140.0,111130.0,1.62670243]
[1756822514370,0.01831361,111140.0,111130.0,1.56431]
[1756822514559,0.01831361,111140.0,111130.0,1.57431]
[1756822514763,0.01831361,111140.0,111130.0,0.33855]
[1756822514966,0.37911361,111140.0,111130.0,0.33855]
[1756822515161,0.83885191,111140.0,111130.0,0.33855]
[1756822515468,0.01831361,111140.0,111130.0,1.60495]
[1756822516071,0.01831361,111140.0,111130.0,1.87495]
[1756822516363,0.3608,111160.0,111150.0,0.39687]
[1756822516563,0.8205383,111160.0,111140.0,0.33855]
[1756822516758,0.8205383,111150.0,111130.0,1.48293424]
[1756822516959,0.4597383,111140.0,111130.0,1.97494424]
[1756822517167,0.8205383,111150.0,111130.0,1.83293424]
[1756822517464,0.4597383,111150.0,111140.0,0.33855]
[1756822517771,0.8929957,111160.0,111150.0,0.39687]
[1756822518070,0.4332574,111160.0,111150.0,0.39687]
[1756822518268,0.8215383,111160.0,111150.0,0.39687]
[1756822518456,0.8205383,111160.0,111150.0,0.39687]
[1756822518662,0.8205383,111160.0,111150.0,0.25486]
[1756822519655,1.0705383,111160.0,111140.0,0.33855]
[1756822519861,0.8205383,111150.0,111140.0,1.06411]
[1756822520066,0.8205383,111150.0,111140.0,0.33855]
[1756822520371,0.3608,111150.0,111140.0,0.33855]
[1756822520565,0.8205383,111150.0,111140.0,0.33855]
[1756822520964,0.8205383,111150.0,111130.0,0.35870424]
[1756822521166,0.8205383,111140.0,111130.0,0.21669424]
[1756822521373,0.8205383,111140.0,111130.0,0.02015424]
[1756822521670,0.8205383,111140.0,111110.0,0.01978007]
[1756822521671,2.85767449,111140.0,111110.0,0.01978007]
[1756822521871,1.2802766,111120.0,111110.0,0.38978007]
[1756822522263,1.6410766,111120.0,111110.0,0.38978007]
[1756822522458,1.6410766,111120.0,111110.0,0.58632007]
[1756822522459,1.1813383,111120.0,111110.0,0.58632007]
[1756822522975,1.6410766,111120.0,111110.0,0.38978007]
[1756822523872,1.6410766,111120.0,111110.0,0.48844007]
[1756822524175,1.1813383,111120.0,111110.0,0.48844007]
[1756822524377,1.8920766,111120.0,111110.0,0.373]
[1756822524565,1.90995228,111120.0,111110.0,0.373]
[1756822525066,1.90995228,111120.0,111090.0,0.3582042]
[1756822525067,2.26095228,111120.0,111090.0,0.3582042]
[1756822525278,0.8205383,111100.0,111090.0,0.3782042]
[1756822526766,0.8205383,111100.0,111090.0,0.1383142]
[1756822527067,1.8113383,111100.0,111090.0,0.0206542]
[1756822527373,1.8113383,111100.0,111090.0,0.001]
[1756822527374,2.2710766,111100.0,111090.0,0.001]
[1756822527681,2.2710766,111100.0,111090.0,0.003]
[1756822527682,2.28963809,111100.0,111090.0,0.003]
[1756822527866,1.82989979,111100.0,111090.0,0.002]
[1756822528066,1.83882595,111100.0,111090.0,0.002]
[1756822528268,1.83882595,111100.0,111050.0,1.42556749]
[1756822528473,0.4597383,111070.0,111060.0,0.14201]
[1756822528781,0.4597383,111070.0,111060.0,0.67855]
[1756822529774,0.47769347,111080.0,111070.0,0.33855]
[1756822529966,0.01795517,111080.0,111070.0,0.94855]
[1756822530371,0.47769347,111080.0,111070.0,0.94855]
[1756822530578,0.83849347,111080.0,111070.0,0.94855]
[1756822530776,0.47769347,111080.0,111070.0,0.94855]
[1756822530973,0.83849347,111080.0,111070.0,0.69855]
[1756822531970,0.83949347,111080.0,111070.0,0.69855]
[1756822532473,0.83949347,111080.0,111070.0,0.55654]